fUST/lending_fUST_20250223
["ID","MTS","AMOUNT","RATE_DAILY","PERIOD"]
[354161232,1740304242230,-2659.65,0.00014499,2]
[354161233,1740304242239,-500.0,0.00014499,2]
[354161234,1740304242249,-5135.52,0.00014499,2]
[354161235,1740304242258,-500.0,0.00014499,2]
[354161236,1740304242268,-1895.17,0.00014499,2]
[354161237,1740304242277,-939.91,0.00014499,2]
[354161238,1740304242286,-1141.25,0.00014499,2]
[354161239,1740304242295,-500.0,0.00014499,2]
[354161240,1740304242305,-614.96,0.00014499,2]
[354161241,1740304242316,-580.14,0.00014499,2]
[354161242,1740304242326,-15263.26310018,0.000145,5]
[354161243,1740304242339,-2323.27095711,0.000145,5]
[354161244,1740304242348,-487.7413775,0.000145,5]
[354161245,1740304242359,-1285.35,0.000145,5]
[354161286,1740304243623,-422.02894242,0.000145,5]
[354161287,1740304243633,-577.35213482,0.000145,5]
[354161298,1740304246365,-1821.3000001,0.000145,5]
[354161299,1740304246422,-3000.0,0.000144,2]
[354161300,1740304246431,-307327.34624447,0.000145,5]
[354161307,1740305305109,399.0,0.00019,120]
[354161361,1740305432750,-300.0,0.00010958,2]
[354161363,1740305432760,-987.07,0.00010959,2]
[354161365,1740305432769,-822.56,0.00010959,2]
[354161366,1740305432778,-490.37,0.00010959,2]
[354161370,1740305432801,-195.1,0.00010959,2]
[354161371,1740305432811,-571.22,0.00010959,2]
[354161373,1740305432820,-318.49050534,0.00010959,2]
[354161400,1740305438621,-157.52949466,0.00010959,2]
[354161402,1740305438630,-396.68,0.00010959,2]
[354161404,1740305438639,-330.57,0.00010959,2]
[354161406,1740305438648,-275.47,0.00010959,2]
[354161408,1740305438657,-229.56,0.00010959,2]
[354161410,1740305438666,-191.3,0.00010959,2]
[354161412,1740305438675,-420.0,0.00012042,2]
[354161414,1740305438684,-180.0,0.00013233,2]
[354161416,1740305438694,-158.887137,0.0001363,5]
[354161418,1740305438704,-159.4902285,0.00013699,2]
[354161420,1740305438713,-500.0,0.0001392,2]
[354161422,1740305438722,-500.0,0.0001392,2]
[354161424,1740305438731,-861.58,0.0001392,2]
[354161426,1740305438740,-1073.51,0.0001392,2]
[354161428,1740305438749,-563.71,0.0001392,2]
[354161430,1740305438759,-552.63,0.0001392,2]
[354161431,1740305438768,-567.37,0.00013921,2]
[354161432,1740305438778,-500.0,0.00013921,2]
[354161433,1740305438787,-500.0,0.00013921,5]
[354161434,1740305438796,-255.62,0.00013921,2]
[354161435,1740305438806,-500.0,0.00013921,2]
[354161436,1740305438817,-500.0,0.00013921,2]
[354161437,1740305438827,-809.7,0.00013921,2]
[354161438,1740305438836,-500.0,0.00013921,2]
[354161439,1740305438846,-500.0,0.00013921,2]
[354161440,1740305438855,-500.0,0.00013921,2]
[354161441,1740305438866,-500.0,0.00013921,2]
[354161442,1740305438876,-500.0,0.00013921,2]
[354161443,1740305438887,-500.0,0.00013921,2]
[354161444,1740305438898,-2438.01,0.00013921,2]
[354161445,1740305438907,-4707.56,0.00013921,2]
[354161446,1740305438916,-500.0,0.00013921,2]
[354161447,1740305438926,-1737.23,0.00013921,2]
[354161448,1740305438936,-500.0,0.00014003,2]
[354161449,1740305438945,-500.0,0.00014003,2]
[354161450,1740305438956,-500.0,0.00014003,2]
[354161451,1740305438965,-809.7,0.00014003,2]
[354161452,1740305438976,-500.0,0.00014003,2]
[354161453,1740305438986,-388.28,0.00014003,2]
[354161454,1740305438996,-500.0,0.00014003,2]
[354161455,1740305439007,-636.53,0.00014003,2]
[354161456,1740305439016,-500.0,0.00014003,2]
[354161457,1740305439026,-2438.01,0.00014003,2]
[354161458,1740305439036,-4707.56,0.00014003,2]
[354161459,1740305439045,-500.0,0.00014003,2]
[354161460,1740305439058,-500.0,0.00014003,2]
[354161461,1740305439068,-500.0,0.00014003,2]
[354161462,1740305439078,-1737.23,0.00014003,2]
[354161463,1740305439088,-861.58,0.00014003,2]
[354161464,1740305439097,-1073.51,0.00014003,2]
[354161465,1740305439108,-563.71,0.00014003,2]
[354161466,1740305439118,-552.63,0.00014003,2]
[354161467,1740305439127,-500.0,0.00014085,2]
[354161468,1740305439138,-500.0,0.00014085,2]
[354161469,1740305439147,-861.58,0.00014085,2]
[354161470,1740305439157,-1073.51,0.00014085,2]
[354161471,1740305439167,-563.71,0.00014085,2]
[354161472,1740305439176,-552.63,0.00014085,2]
[354161473,1740305439185,-500.0,0.00014086,2]
[354161474,1740305439195,-500.0,0.00014086,2]
[354161475,1740305439206,-500.0,0.00014086,2]
[354161476,1740305439215,-809.7,0.00014086,2]
[354161477,1740305439226,-500.0,0.00014086,2]
[354161478,1740305439235,-500.0,0.00014086,2]
[354161479,1740305439244,-500.0,0.00014086,2]
[354161480,1740305439254,-2438.01,0.00014086,2]
[354161481,1740305439263,-4707.56,0.00014086,2]
[354161482,1740305439281,-500.0,0.00014086,2]
[354161483,1740305439294,-1737.23,0.00014086,2]
[354161484,1740305439306,-150.0,0.00014088,4]
[354161485,1740305439320,-557.1188801,0.000141,2]
[354161486,1740305439332,-500.0,0.00014164,2]
[354161487,1740305439345,-355.3336689,0.00014164,2]
[354161488,1740305439355,-355.3336689,0.00014164,2]
[354161489,1740305439367,-355.3336689,0.00014164,2]
[354161490,1740305439379,-341.4399799,0.00014164,2]
[354161491,1740305439392,-500.0,0.00014167,2]
[354161492,1740305439404,-500.0,0.00014167,2]
[354161493,1740305439416,-861.58,0.00014167,2]
[354161494,1740305439429,-146.8767908,0.00014167,2]
[354161495,1740305439536,-926.6332092,0.00014167,2]
[354161496,1740305439547,-563.71,0.00014167,2]
[354161497,1740305439558,-552.63,0.00014167,2]
[354161498,1740305439570,-500.0,0.00014168,2]
[354161499,1740305439582,-500.0,0.00014168,2]
[354161500,1740305439594,-96.9267908,0.00014168,2]
[354161501,1740305439607,-403.0732092,0.00014168,2]
[354161502,1740305439618,-453.5017908,0.00014168,2]
[354161507,1740305440887,-356.1982092,0.00014168,2]
[354161508,1740305440898,-500.0,0.00014168,2]
[354161509,1740305440911,-500.0,0.00014168,2]
[354161510,1740305440922,-500.0,0.00014168,2]
[354161511,1740305440932,-2438.01,0.00014168,2]
[354161512,1740305440944,-4707.56,0.00014168,2]
[354161513,1740305440954,-328.33540401,0.00014168,2]
[354161514,1740305440966,-1737.23,0.00014168,2]
[354161515,1740305440976,-355.3336689,0.000142,2]
[354161516,1740305440987,-355.3336689,0.000142,2]
[354161517,1740305440998,-355.3336689,0.000142,2]
[354161518,1740305441012,-355.3336689,0.000142,2]
[354161519,1740305441023,-355.3336689,0.000142,2]
[354161520,1740305441034,-355.3336689,0.000142,2]
[354161521,1740305441045,-355.3336689,0.000142,2]
[354161522,1740305441057,-12370.33574497,0.00014217,2]
[354161523,1740305441069,-500.0,0.00014249,2]
[354161524,1740305441080,-500.0,0.00014249,2]
[354161525,1740305441092,-861.58,0.00014249,2]
[354161526,1740305441104,-1073.51,0.00014249,2]
[354161527,1740305441117,-563.71,0.00014249,2]
[354161528,1740305441128,-552.63,0.00014249,2]
[354161529,1740305441138,-500.0,0.0001425,2]
[354161530,1740305441150,-513.7837145,0.0001425,2]
[354161531,1740305441161,-500.0,0.0001425,2]
[354161532,1740305441174,-809.7,0.0001425,2]
[354161533,1740305441184,-500.0,0.0001425,2]
[354161534,1740305441195,-369.19,0.0001425,2]
[354161535,1740305441207,-367.54,0.0001425,2]
[354161536,1740305441223,-2438.01,0.0001425,2]
[354161537,1740305441235,-4707.56,0.0001425,2]
[354161538,1740305441247,-1737.23,0.0001425,2]
[354161539,1740305441258,-355.3336689,0.000143,2]
[354161540,1740305441269,-165.09189819,0.00014331,2]
[354161541,1740305441281,-500.0,0.00014331,2]
[354161542,1740305441291,-500.0,0.00014331,2]
[354161543,1740305441300,-861.58,0.00014331,2]
[354161544,1740305441311,-1073.51,0.00014331,2]
[354161545,1740305441322,-563.71,0.00014331,2]
[354161546,1740305441334,-552.63,0.00014331,2]
[354161547,1740305441345,-500.0,0.00014332,2]
[354161548,1740305441356,-500.0,0.00014332,2]
[354161549,1740305441367,-809.7,0.00014332,2]
[354161550,1740305441378,-500.0,0.00014332,2]
[354161551,1740305441389,-2438.01,0.00014332,2]
[354161552,1740305441399,-4707.56,0.00014332,2]
[354161553,1740305441409,-1737.23,0.00014332,2]
[354161554,1740305441419,-12924.89674434,0.00014334,2]
[354161555,1740305441429,-500.0,0.00014373,2]
[354161556,1740305441440,-216.836,0.00014376,2]
[354161557,1740305441454,-3000.0,0.000144,2]
[354161558,1740305441465,-355.3336689,0.000144,2]
[354161559,1740305441475,-355.3336689,0.000144,2]
[354161560,1740305441486,-2500.0,0.000144,2]
[354161561,1740305441498,-355.3336689,0.000144,2]
[354161562,1740305441508,-102483.13248679,0.000144,2]
[354161592,1740305479814,272.371039,9.041e-05,2]
[354161603,1740306085228,1000.0,0.00019,120]
[354161604,1740306086808,1000.0,0.00019,120]
[354161624,1740306512264,1119.16123286,0.00018165,90]
[354161628,1740306575718,258.752487,9.041e-05,2]
[354161630,1740306622961,-159.42,0.00010959,2]
[354161631,1740306622998,-797.12,0.00010959,2]
[354161884,1740306640035,-354.26660958,0.00013723,2]
[354161885,1740306640141,-4645.73339042,0.00013723,2]
[354161886,1740306640151,-560.19316211,0.00013862,2]
[354161887,1740306640161,-1000.0,0.00014,14]
[354161888,1740306640171,-1000.0,0.00014,5]
[354161889,1740306640180,-500.0,0.00014002,2]
[354161890,1740306640190,-500.0,0.00014002,5]
[354161891,1740306640200,-285.66204375,0.00014064,2]
[354161892,1740306640210,-500.0,0.00014067,2]
[354161893,1740306640220,-894.59,0.00014067,2]
[354161894,1740306640229,-500.0,0.00014067,2]
[354161895,1740306640239,-500.0,0.00014068,2]
[354161897,1740306640248,-500.0,0.00014068,2]
[354161898,1740306640257,-500.0,0.00014068,2]
[354161899,1740306640267,-4119.11,0.00014068,2]
[354161900,1740306640276,-2133.26,0.00014068,2]
[354161901,1740306640287,-328.33540401,0.00014068,2]
[354161902,1740306640298,-1520.08,0.00014068,2]
[354161903,1740306640308,-500.0,0.00014084,2]
[354161904,1740306640318,-500.0,0.00014084,5]
[354161905,1740306640328,-500.0,0.00014084,2]
[354161906,1740306640337,-285.66204375,0.00014112,2]
[354161907,1740306640347,-500.0,0.00014149,2]
[354161908,1740306640356,-717.99,0.00014149,2]
[354161909,1740306640366,-500.0,0.00014149,2]
[354161910,1740306640375,-500.0,0.00014149,2]
[354161911,1740306640385,-894.59,0.00014149,2]
[354161912,1740306640395,-513.7837145,0.00014149,2]
[354161913,1740306640405,-500.0,0.00014149,2]
[354161914,1740306640414,-689.59,0.00014149,2]
[354161915,1740306640423,-500.0,0.00014149,2]
[354161916,1740306640433,-500.0,0.0001415,2]
[354161917,1740306640442,-367.54,0.0001415,2]
[354161918,1740306640451,-4119.11,0.0001415,2]
[354161919,1740306640461,-2133.26,0.0001415,2]
[354161920,1740306640470,-1520.08,0.0001415,2]
[354161921,1740306640479,-285.66204375,0.0001416,2]
[354161922,1740306640488,-500.0,0.00014164,2]
[354161923,1740306640498,-369.19,0.00014166,2]
[354161924,1740306640508,-500.0,0.00014167,2]
[354161925,1740306640517,-12370.33574497,0.00014173,2]
[354161926,1740306640527,-355.3336689,0.000142,2]
[354161927,1740306640538,-355.3336689,0.000142,2]
[354161928,1740306640547,-355.3336689,0.000142,2]
[354161929,1740306640556,-285.66204375,0.00014208,2]
[354161930,1740306640565,-500.0,0.00014231,2]
[354161931,1740306640574,-717.99,0.00014231,2]
[354161932,1740306640584,-500.0,0.00014231,2]
[354161933,1740306640592,-500.0,0.00014231,2]
[354161934,1740306640601,-689.59,0.00014231,2]
[354161935,1740306640610,-500.0,0.00014232,2]
[354161936,1740306640619,-894.59,0.00014232,2]
[354161937,1740306640628,-500.0,0.00014232,2]
[354161938,1740306640637,-500.0,0.00014233,2]
[354161939,1740306640646,-4119.11,0.00014233,2]
[354161940,1740306640655,-2133.26,0.00014233,2]
[354161941,1740306640664,-1520.08,0.00014233,2]
[354161942,1740306640674,-500.0,0.00014249,2]
[354161943,1740306640683,-285.66204375,0.00014256,2]
[354161944,1740306640692,-285.66204375,0.00014304,2]
[354161945,1740306640700,-500.0,0.00014313,2]
[354161946,1740306640709,-717.99,0.00014313,2]
[354161947,1740306640719,-500.0,0.00014313,2]
[354161948,1740306640728,-500.0,0.00014313,2]
[354161949,1740306640737,-689.59,0.00014313,2]
[354161950,1740306640747,-500.0,0.00014314,2]
[354161951,1740306640756,-894.59,0.00014314,2]
[354161952,1740306640766,-500.0,0.00014314,2]
[354161953,1740306640775,-500.0,0.00014315,2]
[354161954,1740306640785,-4119.11,0.00014315,2]
[354161955,1740306640795,-2133.26,0.00014315,2]
[354161956,1740306640804,-1520.08,0.00014315,2]
[354161957,1740306640814,-12924.89674434,0.00014322,2]
[354161958,1740306640824,-500.0,0.00014331,2]
[354161959,1740306640833,-216.836,0.00014356,2]
[354161960,1740306640954,-500.0,0.00014396,2]
[354161961,1740306640964,-717.99,0.00014396,2]
[354161962,1740306640974,-500.0,0.00014396,2]
[354161963,1740306640984,-500.0,0.00014396,2]
[354161964,1740306640994,-894.59,0.00014396,2]
[354161965,1740306641003,-500.0,0.00014396,2]
[354161966,1740306641012,-689.59,0.00014396,2]
[354161967,1740306641021,-500.0,0.00014396,2]
[354161968,1740306641031,-500.0,0.00014397,2]
[354161969,1740306641040,-4119.11,0.00014397,2]
[354161970,1740306641048,-2133.26,0.00014397,2]
[354161971,1740306641058,-1520.08,0.00014397,2]
[354161972,1740306641067,-165.09189819,0.00014399,2]
[354161973,1740306641076,-500.0,0.00014399,2]
[354161974,1740306641085,-500.0,0.00014399,2]
[354161975,1740306641094,-500.0,0.00014399,2]
[354161976,1740306641103,-500.0,0.00014399,2]
[354161977,1740306641112,-350.75746811,0.00014399,2]
[354161978,1740306641121,-500.0,0.00014399,2]
[354161979,1740306641131,-462.77324137,0.00014399,2]
[354161980,1740306641146,-20166.43041881,0.000144,2]
[354161981,1740306641155,-3000.0,0.000144,2]
[354161982,1740306641164,-2500.0,0.000144,2]
[354161983,1740306641173,-8630.71077294,0.000144,2]
[354161984,1740306641182,-4263.26459679,0.000144,2]
[354161985,1740306641191,-500.0,0.00014413,2]
[354161986,1740306641201,-208.2152351,0.00014414,2]
[354161987,1740306641211,-168.75192334,0.00014438,2]
[354161988,1740306641220,-500.0,0.00014473,2]
[354161989,1740306641229,-500.0,0.00014478,2]
[354161990,1740306641238,-717.99,0.00014478,2]
[354161991,1740306641247,-500.0,0.00014478,2]
[354161992,1740306641256,-500.0,0.00014478,2]
[354161993,1740306641265,-894.59,0.00014478,2]
[354161994,1740306641274,-500.0,0.00014478,2]
[354161995,1740306641283,-689.59,0.00014478,2]
[354161996,1740306641293,-500.0,0.00014478,2]
[354161997,1740306641302,-330.14,0.00014479,2]
[354161998,1740306641310,-4119.11,0.00014479,2]
[354161999,1740306641320,-2133.26,0.00014479,2]
[354162000,1740306641329,-1520.08,0.00014479,2]
[354162001,1740306641338,-465.67951252,0.00014493,2]
[354162002,1740306641347,-355.3336689,0.00014493,2]
[354162003,1740306641356,-355.3336689,0.00014493,2]
[354162004,1740306641365,-355.3336689,0.00014493,2]
[354162005,1740306641375,-355.3336689,0.00014493,2]
[354162006,1740306641385,-355.3336689,0.00014493,2]
[354162007,1740306641394,-710.6673378,0.00014493,2]
[354162008,1740306641404,-500.0,0.00014495,2]
[354162009,1740306641412,-439.94924438,0.00014498,2]
[354162010,1740306641422,-225.95583872,0.00014498,2]
[354162011,1740306641430,-15392.65729778,0.000145,5]
[354162012,1740306641444,-257.09625755,0.000145,5]
[354162031,1740307804455,277.549098,9.041e-05,2]
[354162036,1740307832094,-5000.0,0.00011881,2]
[354162037,1740307832104,-697.09400555,0.00012001,2]
[354162038,1740307832199,-4302.90599445,0.00012001,2]
[354162039,1740307832209,-300.0,0.00012889,2]
[354162040,1740307832218,-157.4096974,0.0001289,2]
[354162041,1740307832228,-8195.59628759,0.00012943,2]
[354162067,1740307840265,-2590.17467181,0.00012943,2]
[354162068,1740307840274,-500.0,0.00013698,2]
[354162069,1740307840283,-505.21,0.00013698,2]
[354162070,1740307840295,-500.0,0.00013698,2]
[354162071,1740307840305,-500.0,0.00013698,2]
[354162072,1740307840314,-500.0,0.00013698,2]
[354162073,1740307840323,-759.65,0.00013698,2]
[354162074,1740307840333,-500.0,0.00013698,2]
[354162075,1740307840342,-1019.59,0.00013698,2]
[354162076,1740307840351,-585.52,0.00013698,2]
[354162077,1740307840361,-607.46,0.00013698,2]
[354162078,1740307840370,-500.0,0.00013698,2]
[354162079,1740307840379,-500.0,0.00013698,2]
[354162080,1740307840389,-280.15073,0.00013699,2]
[354162081,1740307840398,-174.22954,0.00013699,2]
[354162082,1740307840408,-500.0,0.0001378,2]
[354162083,1740307840417,-505.21,0.0001378,2]
[354162084,1740307840426,-500.0,0.0001378,2]
[354162085,1740307840435,-759.65,0.0001378,2]
[354162086,1740307840444,-500.0,0.0001378,2]
[354162087,1740307840454,-1019.59,0.0001378,2]
[354162088,1740307840463,-585.52,0.0001378,2]
[354162089,1740307840472,-607.46,0.0001378,2]
[354162090,1740307840481,-633.01,0.0001378,2]
[354162091,1740307840490,-208.36544751,0.0001378,2]
[354162092,1740307840499,-355.3336689,0.000138,2]
[354162093,1740307840508,-355.3336689,0.000138,2]
[354162094,1740307840517,-355.3336689,0.000138,2]
[354162095,1740307840526,-710.6673378,0.000138,2]
[354162096,1740307840535,-173.10700505,0.00013859,2]
[354162097,1740307840544,-500.0,0.00013863,2]
[354162098,1740307840553,-505.21,0.00013863,2]
[354162099,1740307840563,-500.0,0.00013863,2]
[354162100,1740307840571,-759.65,0.00013863,2]
[354162101,1740307840581,-500.0,0.00013863,2]
[354162102,1740307840590,-1019.59,0.00013863,2]
[354162103,1740307840599,-585.52,0.00013863,2]
[354162104,1740307840607,-607.46,0.00013863,2]
[354162105,1740307840615,-355.3336689,0.000139,2]
[354162106,1740307840624,-500.0,0.00013945,2]
[354162107,1740307840634,-505.21,0.00013945,2]
[354162108,1740307840643,-500.0,0.00013945,2]
[354162109,1740307840652,-759.65,0.00013945,2]
[354162110,1740307840663,-500.0,0.00013945,2]
[354162111,1740307840672,-1019.59,0.00013945,2]
[354162112,1740307840681,-585.52,0.00013945,2]
[354162113,1740307840690,-607.46,0.00013945,2]
[354162114,1740307840700,-16875.45844272,0.00014,2]
[354162115,1740307840709,-355.3336689,0.00014,2]
[354162116,1740307840719,-220.9116047,0.00014,2]
[354162117,1740307840728,-154.7376905,0.00014,2]
[354162118,1740307840737,-355.3336689,0.00014,2]
[354162119,1740307840747,-306.0,0.00014,2]
[354162120,1740307840757,-306.7082091,0.00014,2]
[354162121,1740307840767,-500.0,0.00014027,2]
[354162122,1740307840776,-505.21,0.00014027,2]
[354162123,1740307840785,-500.0,0.00014027,2]
[354162124,1740307840795,-759.65,0.00014027,2]
[354162125,1740307840804,-500.0,0.00014027,2]
[354162126,1740307840814,-957.74021288,0.00014027,2]
[354162152,1740307846046,-61.84978712,0.00014027,2]
[354162153,1740307846055,-585.52,0.00014027,2]
[354162154,1740307846064,-194.45967895,0.00014027,2]
[354162159,1740309006311,278.358898,9.041e-05,2]
[354162185,1740309032370,-4116.95282913,0.0001202,2]
[354162187,1740309032382,-883.04717087,0.0001202,2]
[354162189,1740309032392,-2806.13601913,0.00012141,2]
[354162192,1740309032404,-1950.97342152,0.00012141,2]
[354162221,1740309038098,-242.89055935,0.00012141,2]
[354162222,1740309038108,-300.0,0.00012671,2]
[354162223,1740309038117,-461.2857104,0.00012673,2]
[354162224,1740309038127,-306.50505608,0.00013598,2]
[354162225,1740309038136,-180.129967,0.0001363,5]
[354162226,1740309038146,-302.0,0.0001369,2]
[354162227,1740309038155,-500.0,0.00013698,2]
[354162228,1740309038164,-500.0,0.00013698,2]
[354162229,1740309038173,-500.0,0.00013698,2]
[354162230,1740309038183,-500.0,0.00013698,2]
[354162231,1740309038192,-1000.0,0.00013698,2]
[354162232,1740309038202,-500.65151978,0.00013698,2]
[354162234,1740309038211,-500.0,0.00013698,2]
[354162236,1740309038220,-501.32677922,0.00013698,2]
[354162237,1740309038229,-500.0,0.00013698,2]
[354162238,1740309038238,-297.61722752,0.00013698,2]
[354162239,1740309038247,-500.0,0.00013698,2]
[354162240,1740309038256,-500.0,0.00013698,2]
[354162241,1740309038264,-500.0,0.00013698,2]
[354162242,1740309038273,-500.0,0.00013698,2]
[354162243,1740309038282,-77.50903123,0.00013698,2]
[354162246,1740309040451,-428.2250598,0.00013698,2]
[354162247,1740309040461,-500.0,0.00013698,2]
[354162248,1740309040472,-500.0,0.00013698,2]
[354162249,1740309040481,-500.0,0.00013698,2]
[354162250,1740309040490,-500.0,0.00013698,2]
[354162251,1740309040499,-500.0,0.00013698,2]
[354162252,1740309040508,-500.0,0.00013698,5]
[354162253,1740309040518,-500.0,0.00013698,2]
[354162254,1740309040529,-500.0,0.00013698,2]
[354162255,1740309040540,-500.0,0.00013698,2]
[354162256,1740309040549,-500.0,0.00013698,2]
[354162257,1740309040559,-405.55598341,0.00013698,2]
[354162258,1740309040570,-500.0,0.00013698,2]
[354162259,1740309040579,-500.0,0.00013698,2]
[354162260,1740309040590,-500.0,0.00013698,2]
[354162261,1740309040599,-500.0,0.00013698,2]
[354162262,1740309040608,-500.0,0.00013698,2]
[354162263,1740309040617,-500.0,0.00013698,2]
[354162264,1740309040627,-500.0,0.00013698,2]
[354162265,1740309040635,-4868.59,0.00013698,2]
[354162266,1740309040645,-2505.59,0.00013698,2]
[354162267,1740309040654,-500.0,0.00013698,2]
[354162268,1740309040667,-500.0,0.00013698,2]
[354162269,1740309040679,-500.0,0.00013698,2]
[354162270,1740309040691,-500.0,0.00013698,2]
[354162271,1740309040703,-601.39,0.00013698,2]
[354162272,1740309040717,-168.19095169,0.00013698,2]
[354162273,1740309040727,-1724.61,0.00013698,2]
[354162274,1740309040737,-500.0,0.00013698,2]
[354162275,1740309040747,-827.09,0.00013698,2]
[354162276,1740309040756,-500.0,0.00013698,2]
[354162277,1740309040766,-500.0,0.00013698,2]
[354162278,1740309040776,-500.0,0.00013698,2]
[354162279,1740309040785,-851.4,0.00013698,2]
[354162280,1740309040794,-500.0,0.00013698,2]
[354162281,1740309040803,-501.45983264,0.00013698,2]
[354162282,1740309040812,-219.820479,0.00013699,2]
[354162283,1740309040822,-167.855794,0.00013699,2]
[354162284,1740309040832,-355.3336689,0.000137,2]
[354162285,1740309040841,-306.50505606,0.00013713,2]
[354162286,1740309040850,-500.0,0.0001378,2]
[354162287,1740309040860,-500.0,0.0001378,2]
[354162288,1740309040869,-500.0,0.0001378,2]
[354162289,1740309040879,-500.0,0.0001378,2]
[354162290,1740309040888,-500.0,0.0001378,5]
[354162291,1740309040897,-500.0,0.0001378,2]
[354162292,1740309040906,-500.0,0.0001378,2]
[354162293,1740309040915,-197.03,0.0001378,2]
[354162294,1740309040925,-500.0,0.0001378,2]
[354162295,1740309040934,-500.0,0.0001378,2]
[354162296,1740309040943,-500.0,0.0001378,2]
[354162297,1740309040953,-500.0,0.0001378,2]
[354162298,1740309040962,-4868.59,0.0001378,2]
[354162299,1740309040972,-2505.59,0.0001378,2]
[354162300,1740309040981,-500.0,0.0001378,2]
[354162301,1740309040990,-500.0,0.0001378,2]
[354162302,1740309040999,-500.0,0.0001378,2]
[354162303,1740309041008,-500.0,0.0001378,2]
[354162304,1740309041017,-601.39,0.0001378,2]
[354162305,1740309041026,-1724.61,0.0001378,2]
[354162306,1740309041035,-500.0,0.0001378,2]
[354162307,1740309041043,-827.09,0.0001378,2]
[354162308,1740309041053,-500.0,0.0001378,2]
[354162309,1740309041061,-500.0,0.0001378,2]
[354162310,1740309041070,-500.0,0.0001378,2]
[354162311,1740309041079,-851.4,0.0001378,2]
[354162312,1740309041088,-355.3336689,0.000138,2]
[354162313,1740309041098,-355.3336689,0.000138,2]
[354162314,1740309041108,-306.50505606,0.00013827,2]
[354162315,1740309041119,-1490.74197075,0.00013861,5]
[354162316,1740309041129,-39482.50380618,0.00013862,5]
[354162317,1740309041138,-151.0,0.00013862,2]
[354162318,1740309041147,-500.0,0.00013862,2]
[354162319,1740309041156,-500.0,0.00013862,2]
[354162320,1740309041165,-500.0,0.00013862,2]
[354162321,1740309041174,-500.0,0.00013862,2]
[354162322,1740309041183,-350.75746811,0.00013862,2]
[354162323,1740309041192,-500.0,0.00013862,2]
[354162324,1740309041201,-165.09189819,0.00013862,2]
[354162325,1740309041210,-462.77324137,0.00013862,2]
[354162326,1740309041219,-243.44553908,0.00013863,2]
[354162327,1740309041228,-500.0,0.00013863,2]
[354162328,1740309041238,-500.0,0.00013863,2]
[354162329,1740309041247,-500.0,0.00013863,5]
[354162330,1740309041256,-500.0,0.00013863,2]
[354162331,1740309041265,-645.33,0.00013863,2]
[354162332,1740309041275,-367.54,0.00013863,2]
[354162333,1740309041285,-500.0,0.00013863,2]
[354162334,1740309041295,-500.0,0.00013863,2]
[354162335,1740309041304,-4868.59,0.00013863,2]
[354162336,1740309041314,-2505.59,0.00013863,2]
[354162337,1740309041323,-500.0,0.00013863,2]
[354162338,1740309041332,-608.42540401,0.00013863,2]
[354162339,1740309041342,-500.0,0.00013863,2]
[354162340,1740309041351,-601.39,0.00013863,2]
[354162341,1740309041360,-1724.61,0.00013863,2]
[354162342,1740309041369,-500.0,0.00013863,2]
[354162343,1740309041379,-827.09,0.00013863,2]